[Event "EYCC O18-ch 2024"]
[Site "Prague"]
[Date "2024.08.26"]
[Round "5.13"]
[White "Ribera Veganzones, Serni"]
[Black "Kovalskyi, Roman"]
[Result "1-0"]
[ECO "B36"]
[WhiteElo "2309"]
[BlackElo "2108"]
[Annotator "RC"]
[PlyCount "118"]
[EventDate "2024.08.19"]
[EventType "swiss"]
[EventCountry "CZE"]
[SourceTitle "playchess.com"]
[Source "ChessBase"]
[SourceQuality "1"]
[TimeControl "5400+30"]

1. e4 {[%emt 0:00:01]} c5 {[%emt 0:02:37]} 2. Nf3 {[%emt 0:00:07]} g6 {[%emt 0:00:15]} 3. d4 {[%emt 0:00:12]} cxd4 {[%emt 0:00:03]} 4. Nxd4 {[%emt 0:00:12]} Nc6 {[%emt 0:00:03]} 5. c4 {[%emt 0:00:13]} Nf6 {[%emt 0:00:07]} 6. Nc3 {[%emt 0:00:09]} d6 {[%emt 0:00:02]} 7. Be2 {[%emt 0:00:14]} Nxd4 {[%emt 0:00:05]} 8. Qxd4 {[%emt 0:00:07]} Bg7 {[%emt 0:00:07]} 9. Be3 {[%emt 0:00:09]} O-O {[%emt 0:00:07]} 10. Qd3 {[%emt 0:00:05]} a5 {[%emt 0:00:15]} 11. O-O {[%emt 0:00:14]} Bd7 {[%emt 0:00:02]} 12. b3 {[%emt 0:01:30]} Bc6 {[%emt 0:00:42]} 13. Rac1 {[%emt 0:02:27]} Nd7 {[%emt 0:01:25]} 14. Qd2 {[%emt 0:00:20]} Nc5 {[%emt 0:00:21]} 15. f3 {[%emt 0:00:21]} Be5 {[%emt 0:00:08]} 16. Kh1 {[%emt 0:10:15]} e6 {[%emt 0:02:06]} 17. Bg5 {[%emt 0:05:48]} f6 {[%emt 0:03:22]} 18. Be3 {[%emt 0:04:30]} f5 {[%emt 0:08:29]} 19. exf5 {[%emt 0:02:37]} gxf5 {[%emt 0:00:55]} 20. f4 {[%emt 0:00:41]} Bxc3 {[%emt 0:03:24]} 21. Qxc3 {[%emt 0:00:28]} Ne4 {[%emt 0:00:04]} 22. Qe1 {[%emt 0:02:31]} Rf6 {[%emt 0:01:47]} 23. Bf3 {[%emt 0:04:29]} Rh6 {[%emt 0:03:18]} 24. Rd1 {[%emt 0:02:18]} Qe7 {[%emt 0:02:56]} 25. Bb6 {[%emt 0:06:02]} Ra6 {[%emt 0:13:08]} 26. Bd4 {[%emt 0:19:18]} Qh4 {[%emt 0:02:46]} 27. Qxh4 {[%emt 0:00:14]} Rxh4 {[%emt 0:00:05]} 28. Kg1 {[%emt 0:00:21]} Kf7 {[%emt 0:14:14]} 29. g3 {[%emt 0:01:39]} Rh6 {[%emt 0:00:16]} 30. Bb2 {[%emt 0:03:59]} Ke7 {[%emt 0:19:40]} 31. Rd4 {[%emt 0:01:46]} Rg6 {[%emt 0:02:00]} 32. Be2 {[%emt 0:02:24]} a4 {[%emt 0:16:46]} 33. b4 {[%emt 0:03:22]} a3 {[%emt 0:00:04]} 34. Ba1 {[%emt 0:00:22]} Ra4 {[%emt 0:03:26]} 35. b5 {[%emt 0:03:58]} Bd7 {[%emt 0:00:18]} 36. Rb1 {[%emt 0:05:11]} Rg8 {[%emt 0:01:30]} 37. Bd1 {[%emt 0:00:30]} Ra5 {[%emt 0:00:20]} 38. Bf3 {[%emt 0:00:33]} Nc5 {[%emt 0:00:58]} 39. Bc3 {[%emt 0:02:49]} Ra4 {[%emt 0:00:04]} 40. Bd1 {[%emt 0:02:05]} Ra7 {[%emt 0:00:06]} 41. Bb4 {[%emt 0:00:32]} b6 {[%emt 0:00:05]} 42. Bc2 {[%emt 0:01:00]} Rd8 {[%emt 0:00:21]} 43. Re1 {[%emt 0:00:40]} Rf8 {[%emt 0:02:33]} 44. Red1 {[%emt 0:00:29]} Nb7 {[%emt 0:00:33]} 45. Rxd6 {[%emt 0:02:55]} Nxd6 {[%emt 0:00:08]} 46. Rxd6 {[%emt 0:01:06]} Rc8 {[%emt 0:00:55]} 47. Rxb6+ {[%emt 0:00:08]} Kd8 {[%emt 0:00:03]} 48. c5 {[%emt 0:01:16]} Kc7 {[%emt 0:00:37]} 49. Bc3 {[%emt 0:01:11]} Kd8 {[%emt 0:00:41]} 50. Bf6+ {[%emt 0:00:51]} Kc7 {[%emt 0:00:20]} 51. Be5+ {[%emt 0:00:21]} Kd8 {[%emt 0:00:02]} 52. c6 {[%emt 0:00:23]} Be8 {[%emt 0:00:25]} 53. Bb3 {[%emt 0:00:24]} Bf7 {[%emt 0:00:17]} 54. Rb7 {[%emt 0:00:21]} Rca8 {[%emt 0:00:03]} 55. b6 {[%emt 0:00:12]} Ra6 {[%emt 0:00:12]} 56. Rxf7 {[%emt 0:00:09]} Rxb6 {[%emt 0:00:05]} 57. Rf8+ {[%emt 0:00:10]} Ke7 {[%emt 0:00:04]} 58. Rxa8 {[%emt 0:00:06]} Rxc6 {[%emt 0:00:03]} 59. Rxa3 {[%emt 0:00:33]} h5 {[%emt 0:00:06]} 1-0

[Event "EYCC O18-ch 2024"]
[Site "Prague"]
[Date "2024.08.26"]
[Round "5.14"]
[White "Paseka, Matyas"]
[Black "Razafindratsima, Timothe"]
[Result "0-1"]
[ECO "B33"]
[WhiteElo "2281"]
[BlackElo "2457"]
[Annotator "RC"]
[PlyCount "54"]
[EventDate "2024.08.19"]
[EventType "swiss"]
[EventCountry "CZE"]
[SourceTitle "playchess.com"]
[Source "ChessBase"]
[SourceQuality "1"]
[TimeControl "5400+30"]

1. e4 {[%emt 0:00:03]} c5 {[%emt 0:00:12]} 2. Nf3 {[%emt 0:00:06]} Nc6 {[%emt 0:00:13]} 3. d4 {[%emt 0:00:07]} cxd4 {[%emt 0:00:18]} 4. Nxd4 {[%emt 0:00:06]} Nf6 {[%emt 0:00:11]} 5. Nc3 {[%emt 0:00:06]} e5 {[%emt 0:00:16]} 6. Ndb5 {[%emt 0:00:06]} d6 {[%emt 0:00:15]} 7. Bg5 {[%emt 0:00:08]} a6 {[%emt 0:00:22]} 8. Na3 {[%emt 0:00:08]} Be6 {[%emt 0:00:49]} 9. Nc4 {[%emt 0:03:41]} Rb8 {[%emt 0:00:47]} 10. Bxf6 {[%emt 0:15:11]} Qxf6 {[%emt 0:00:09]} 11. Nb6 {[%emt 0:00:52]} Qd8 {[%emt 0:01:01]} 12. Ncd5 {[%emt 0:01:31]} g6 {[%emt 0:00:30]} 13. a4 {[%emt 0:01:59]} Bh6 {[%emt 0:11:15]} 14. h4 {[%emt 0:02:43]} O-O {[%emt 0:12:39]} 15. Bc4 {[%emt 0:08:42]} Kh8 {[%emt 0:09:21]} 16. Ra3 {[%emt 0:06:40]} f5 {[%emt 0:02:27]} 17. h5 {[%emt 0:01:43]} g5 {[%emt 0:09:46]} 18. exf5 {[%emt 0:30:19]} Bxf5 {[%emt 0:00:05]} 19. a5 {[%emt 0:00:36]} g4 {[%emt 0:05:22]} 20. Be2 {[%emt 0:06:33]} Nd4 {[%emt 0:04:49]} 21. Bd3 {[%emt 0:01:13]} Qg5 {[%emt 0:08:23]} 22. Nc4 {[%emt 0:13:07]} g3 {[%emt 0:15:48]} 23. O-O {[%emt 0:03:40]} Bg4 {[%emt 0:02:12]} 24. Qe1 {[%emt 0:00:34]} Nf3+ {[%emt 0:01:50]} 25. gxf3 {[%emt 0:00:07]} gxf2+ {[%emt 0:00:12]} 26. Rxf2 {[%emt 0:00:43]} Bxf3+ {[%emt 0:00:06]} 27. Kf1 {[%emt 0:00:32]} Bg2+ {[%emt 0:00:28]} 0-1

[Event "EYCC O18-ch 2024"]
[Site "Prague"]
[Date "2024.08.26"]
[Round "5.14"]
[White "Szikszai, Bertalan"]
[Black "Rak, Martin"]
[Result "1-0"]
[ECO "B52"]
[WhiteElo "2278"]
[BlackElo "2104"]
[Annotator "RC"]
[PlyCount "63"]
[EventDate "2024.08.19"]
[EventType "swiss"]
[EventCountry "CZE"]
[SourceTitle "playchess.com"]
[Source "ChessBase"]
[SourceQuality "1"]
[TimeControl "5400+30"]

1. e4 {[%emt 0:00:04]} c5 {[%emt 0:00:09]} 2. Nf3 {[%emt 0:00:06]} d6 {[%emt 0:00:04]} 3. Bb5+ {[%emt 0:00:09]} Bd7 {[%emt 0:01:57]} 4. Bxd7+ {[%emt 0:00:11]} Nxd7 {[%emt 0:00:02]} 5. O-O {[%emt 0:01:18]} Ngf6 {[%emt 0:00:19]} 6. Re1 {[%emt 0:02:13]} g6 {[%emt 0:00:37]} 7. c3 {[%emt 0:01:37]} Bg7 {[%emt 0:01:52]} 8. d4 {[%emt 0:00:21]} O-O {[%emt 0:06:52]} 9. e5 {[%emt 0:07:26]} Ne8 {[%emt 0:01:56]} 10. Bg5 {[%emt 0:13:32]} dxe5 {[%emt 0:01:23]} 11. dxe5 {[%emt 0:00:07]} Nc7 {[%emt 0:00:19]} 12. Qc1 {[%emt 0:05:53]} Ne6 {[%emt 0:02:16]} 13. Bh6 {[%emt 0:00:14]} Qc7 {[%emt 0:06:11]} 14. Qe3 {[%emt 0:12:09]} Nb6 {[%emt 0:15:49]} 15. Bxg7 {[%emt 0:00:52]} Kxg7 {[%emt 0:01:52]} 16. Nbd2 {[%emt 0:04:00]} Rad8 {[%emt 0:02:25]} 17. g3 {[%emt 0:03:16]} h6 {[%emt 0:04:51]} 18. h4 {[%emt 0:10:25]} Rd7 {[%emt 0:08:59]} 19. h5 {[%emt 0:05:34]} Rfd8 {[%emt 0:06:06]} 20. Qe2 {[%emt 0:02:30]} g5 {[%emt 0:02:33]} 21. Nf1 {[%emt 0:01:08]} Qc6 {[%emt 0:01:24]} 22. N3h2 {[%emt 0:09:25]} Rd3 {[%emt 0:05:03]} 23. Qg4 {[%emt 0:01:37]} Qa4 {[%emt 0:03:15]} 24. Qf5 {[%emt 0:01:51]} Qc2 {[%emt 0:01:27]} 25. Ng4 {[%emt 0:04:55]} Rxc3 {[%emt 0:08:42]} 26. Nxh6 {[%emt 0:02:21]} Kxh6 {[%emt 0:01:33]} 27. Qxf7 {[%emt 0:00:10]} Rf8 {[%emt 0:00:34]} 28. Qxe6+ {[%emt 0:00:09]} Kxh5 {[%emt 0:00:06]} 29. g4+ {[%emt 0:00:50]} Kh4 {[%emt 0:00:09]} 30. Qh6+ {[%emt 0:00:12]} Kxg4 {[%emt 0:00:06]} 31. Nh2+ {[%emt 0:00:16]} Kf4 {[%emt 0:00:14]} 32. Qxf8+ {[%emt 0:00:12]} 1-0

[Event "EYCC O18-ch 2024"]
[Site "Prague"]
[Date "2024.08.26"]
[Round "5.15"]
[White "Ristic, Luka"]
[Black "Maldonado Mena, German"]
[Result "1-0"]
[ECO "A08"]
[WhiteElo "2274"]
[BlackElo "2073"]
[Annotator "RC"]
[PlyCount "57"]
[EventDate "2024.08.19"]
[EventType "swiss"]
[EventCountry "CZE"]
[SourceTitle "playchess.com"]
[Source "ChessBase"]
[SourceQuality "1"]
[TimeControl "5400+30"]

1. Nf3 {[%emt 0:00:39]} d5 {[%emt 0:00:41]} 2. g3 {[%emt 0:03:24]} Nf6 {[%emt 0:01:31]} 3. Bg2 {[%emt 0:00:13]} e6 {[%emt 0:00:44]} 4. O-O {[%emt 0:01:09]} Be7 {[%emt 0:00:33]} 5. d3 {[%emt 0:00:31]} O-O {[%emt 0:01:35]} 6. Nbd2 {[%emt 0:00:28]} c5 {[%emt 0:17:15]} 7. e4 {[%emt 0:00:16]} Nc6 {[%emt 0:00:03]} 8. Re1 {[%emt 0:00:27]} Nd7 {[%emt 0:03:14]} 9. a4 {[%emt 0:06:04]} Qc7 {[%emt 0:02:39]} 10. Nf1 {[%emt 0:12:15]} d4 {[%emt 0:00:11]} 11. g4 {[%emt 0:10:31]} Bd6 {[%emt 0:02:24]} 12. Ng3 {[%emt 0:01:03]} Bf4 {[%emt 0:08:18]} 13. Nh5 {[%emt 0:12:40]} Bxc1 {[%emt 0:00:06]} 14. Qxc1 {[%emt 0:00:05]} Nde5 {[%emt 0:00:05]} 15. Nxe5 {[%emt 0:03:02]} Nxe5 {[%emt 0:00:38]} 16. g5 {[%emt 0:02:01]} Ng4 {[%emt 0:03:48]} 17. e5 {[%emt 0:01:03]} f5 {[%emt 0:08:39]} 18. gxf6 {[%emt 0:04:56]} gxf6 {[%emt 0:00:48]} 19. Qf4 {[%emt 0:00:25]} Nxe5 {[%emt 0:13:50]} 20. Nxf6+ {[%emt 0:00:32]} Rxf6 {[%emt 0:00:07]} 21. Qxf6 {[%emt 0:00:06]} Ng6 {[%emt 0:00:10]} 22. Be4 {[%emt 0:01:26]} Qf7 {[%emt 0:00:07]} 23. Qxf7+ {[%emt 0:00:26]} Kxf7 {[%emt 0:00:05]} 24. a5 {[%emt 0:00:08]} Rb8 {[%emt 0:00:49]} 25. Bxg6+ {[%emt 0:01:00]} hxg6 {[%emt 0:00:16]} 26. b4 {[%emt 0:00:28]} cxb4 {[%emt 0:02:52]} 27. Rab1 {[%emt 0:00:10]} Bd7 {[%emt 0:02:52]} 28. Rxb4 Bc6 {[%emt 0:00:08]} 29. Rxd4 {[%emt 0:01:42]} 1-0

[Event "EYCC O18-ch 2024"]
[Site "Prague"]
[Date "2024.08.26"]
[Round "5.15"]
[White "Fishchuk, Vladyslav"]
[Black "Pyrih, Roman"]
[Result "1/2-1/2"]
[ECO "C41"]
[WhiteElo "2264"]
[BlackElo "2422"]
[Annotator "RC"]
[PlyCount "119"]
[EventDate "2024.08.19"]
[EventType "swiss"]
[EventCountry "CZE"]
[SourceTitle "playchess.com"]
[Source "ChessBase"]
[SourceQuality "1"]
[TimeControl "5400+30"]

1. e4 {[%emt 0:00:18]} e5 {[%emt 0:01:42]} 2. Nc3 {[%emt 0:00:31]} Nf6 {[%emt 0:01:16]} 3. Nf3 {[%emt 0:01:26]} d6 {[%emt 0:01:01]} 4. d4 {[%emt 0:00:08]} Nbd7 {[%emt 0:00:02]} 5. Rg1 {[%emt 0:00:28]} c6 {[%emt 0:01:31]} 6. g4 {[%emt 0:03:54]} h6 {[%emt 0:00:01]} 7. h4 {[%emt 0:13:02]} exd4 {[%emt 0:06:28]} 8. Nxd4 {[%emt 0:02:37]} Nc5 {[%emt 0:00:29]} 9. Qe2 {[%emt 0:01:47]} Be7 {[%emt 0:09:49]} 10. g5 {[%emt 0:02:51]} hxg5 {[%emt 0:00:05]} 11. hxg5 {[%emt 0:00:38]} Nh5 {[%emt 0:00:34]} 12. Be3 {[%emt 0:09:14]} g6 {[%emt 0:03:50]} 13. O-O-O {[%emt 0:00:41]} Bd7 {[%emt 0:00:03]} 14. f4 {[%emt 0:09:25]} b5 {[%emt 0:00:09]} 15. f5 {[%emt 0:07:55]} b4 {[%emt 0:03:24]} 16. Nb1 {[%emt 0:00:15]} Qa5 {[%emt 0:00:15]} 17. f6 {[%emt 0:03:32]} Nxf6 {[%emt 0:10:10]} 18. gxf6 {[%emt 0:00:10]} Bxf6 {[%emt 0:00:01]} 19. Qf3 {[%emt 0:08:06]} Be5 {[%emt 0:00:51]} 20. Bc4 {[%emt 0:00:16]} O-O-O {[%emt 0:00:03]} 21. Rh1 {[%emt 0:03:56]} Na4 {[%emt 0:00:01]} 22. Rxh8 {[%emt 0:07:41]} Rxh8 {[%emt 0:00:55]} 23. Bf4 {[%emt 0:01:52]} Rh3 {[%emt 0:04:49]} 24. Qf1 {[%emt 0:00:16]} Rh1 {[%emt 0:02:42]} 25. Qxh1 {[%emt 0:02:31]} Bxf4+ {[%emt 0:00:01]} 26. Nd2 {[%emt 0:00:24]} Qe5 {[%emt 0:00:02]} 27. Qg1 {[%emt 0:06:47]} c5 {[%emt 0:00:34]} 28. Kb1 {[%emt 0:00:26]} cxd4 {[%emt 0:00:30]} 29. Bd3 {[%emt 0:06:28]} Be6 {[%emt 0:01:35]} 30. Nb3 {[%emt 0:01:17]} Be3 {[%emt 0:02:12]} 31. Qe1 {[%emt 0:00:20]} a5 {[%emt 0:00:23]} 32. Qh4 {[%emt 0:00:34]} Kd7 {[%emt 0:03:28]} 33. Qh7 {[%emt 0:00:55]} Nb6 {[%emt 0:00:02]} 34. Qg8 {[%emt 0:03:38]} Qh5 {[%emt 0:13:49]} 35. Rf1 {[%emt 0:00:29]} Kc7 {[%emt 0:00:46]} 36. Rxf7+ {[%emt 0:01:35]} Bxf7 {[%emt 0:00:01]} 37. Qxf7+ {[%emt 0:00:07]} Nd7 {[%emt 0:01:36]} 38. a4 {[%emt 0:00:17]} bxa3 {[%emt 0:00:12]} 39. bxa3 {[%emt 0:00:05]} a4 {[%emt 0:05:32]} 40. Qc4+ {[%emt 0:00:18]} Nc5 {[%emt 0:00:01]} 41. Nxc5 {[%emt 0:01:48]} Qxc5 {[%emt 0:00:03]} 42. Qxa4 {[%emt 0:00:57]} g5 {[%emt 0:00:03]} 43. Qb3 {[%emt 0:00:17]} g4 {[%emt 0:02:23]} 44. Qf7+ {[%emt 0:00:12]} Kb6 {[%emt 0:00:01]} 45. Qb3+ {[%emt 0:00:34]} Kc6 {[%emt 0:00:22]} 46. a4 {[%emt 0:00:56]} g3 {[%emt 0:00:26]} 47. Qb8 {[%emt 0:00:41]} Qb6+ {[%emt 0:08:14]} 48. Bb5+ {[%emt 0:00:12]} Kc5 {[%emt 0:00:01]} 49. Qg8 {[%emt 0:01:11]} Kb4 {[%emt 0:00:02]} 50. Qxg3 {[%emt 0:00:57]} d3 {[%emt 0:05:01]} 51. cxd3 {[%emt 0:00:27]} Qc5 {[%emt 0:00:01]} 52. Qe1+ {[%emt 0:00:21]} Ka3 {[%emt 0:00:01]} 53. Bc4 {[%emt 0:00:46]} Qb6+ {[%emt 0:00:01]} 54. Bb5 {[%emt 0:00:09]} Qd4 {[%emt 0:00:01]} 55. Kc2 {[%emt 0:00:42]} Qb2+ {[%emt 0:00:16]} 56. Kd1 {[%emt 0:00:08]} Bf4 {[%emt 0:01:08]} 57. Bd7 {[%emt 0:00:58]} Kb3 {[%emt 0:03:08]} 58. Be6+ {[%emt 0:00:12]} Kxa4 {[%emt 0:00:54]} 59. Bd7+ {[%emt 0:00:28]} Kb3 {[%emt 0:00:02]} 60. Be6+ {[%emt 0:00:14]} 1/2-1/2

[Event "EYCC O18-ch 2024"]
[Site "Prague"]
[Date "2024.08.26"]
[Round "5.16"]
[White "Pidluznij, Gleb"]
[Black "Bokhnak, Timofey"]
[Result "1-0"]
[ECO "C24"]
[WhiteElo "2414"]
[BlackElo "2273"]
[Annotator "RC"]
[PlyCount "189"]
[EventDate "2024.08.19"]
[EventType "swiss"]
[EventCountry "CZE"]
[SourceTitle "playchess.com"]
[Source "ChessBase"]
[SourceQuality "1"]
[TimeControl "5400+30"]

1. e4 {[%emt 0:00:03]} e5 {[%emt 0:00:20]} 2. Bc4 {[%emt 0:05:30]} Nf6 {[%emt 0:01:50]} 3. d3 {[%emt 0:00:07]} Nc6 {[%emt 0:01:21]} 4. Nc3 {[%emt 0:00:14]} d6 {[%emt 0:00:33]} 5. Nge2 {[%emt 0:01:24]} Be7 {[%emt 0:01:07]} 6. O-O {[%emt 0:03:03]} O-O {[%emt 0:01:08]} 7. a3 {[%emt 0:02:35]} Be6 {[%emt 0:08:00]} 8. f4 {[%emt 0:10:44]} Bxc4 {[%emt 0:07:35]} 9. dxc4 {[%emt 0:00:07]} exf4 {[%emt 0:01:19]} 10. Nxf4 {[%emt 0:03:43]} Ne5 {[%emt 0:01:22]} 11. b3 {[%emt 0:01:02]} c6 {[%emt 0:00:21]} 12. Be3 {[%emt 0:10:33]} Qc7 {[%emt 0:05:34]} 13. Kh1 {[%emt 0:04:27]} Rad8 {[%emt 0:00:50]} 14. Qe2 {[%emt 0:00:50]} Rfe8 {[%emt 0:00:23]} 15. Rad1 {[%emt 0:04:33]} Qa5 {[%emt 0:07:24]} 16. Bd4 {[%emt 0:00:30]} Ned7 {[%emt 0:02:16]} 17. a4 {[%emt 0:15:45]} Ne5 {[%emt 0:06:02]} 18. Nh5 {[%emt 0:03:36]} Nxh5 {[%emt 0:05:00]} 19. Qxh5 {[%emt 0:00:03]} Bf6 {[%emt 0:00:22]} 20. Rxf6 {[%emt 0:08:34]} gxf6 {[%emt 0:00:08]} 21. Rd3 {[%emt 0:00:12]} Re6 {[%emt 0:07:32]} 22. Rg3+ {[%emt 0:04:12]} Kf8 {[%emt 0:00:19]} 23. Qxh7 {[%emt 0:00:47]} Ng6 {[%emt 0:03:57]} 24. h4 {[%emt 0:01:21]} Re5 {[%emt 0:02:36]} 25. c5 {[%emt 0:05:19]} dxc5 {[%emt 0:07:48]} 26. Bxe5 {[%emt 0:00:06]} Nxe5 {[%emt 0:00:22]} 27. h5 {[%emt 0:00:27]} Qa6 {[%emt 0:02:20]} 28. Qf5 {[%emt 0:02:56]} Ke7 {[%emt 0:00:05]} 29. h6 {[%emt 0:02:29]} Rh8 {[%emt 0:03:54]} 30. h7 {[%emt 0:00:36]} Ng6 {[%emt 0:00:05]} 31. Qxc5+ {[%emt 0:00:40]} Ke8 {[%emt 0:00:05]} 32. Rf3 {[%emt 0:02:52]} Rxh7+ {[%emt 0:00:10]} 33. Kg1 {[%emt 0:00:02]} Qb6 {[%emt 0:01:29]} 34. Qxb6 {[%emt 0:00:07]} axb6 {[%emt 0:00:03]} 35. Rxf6 {[%emt 0:00:05]} Rh5 {[%emt 0:01:26]} 36. Nd1 {[%emt 0:04:36]} Re5 {[%emt 0:02:09]} 37. Ne3 {[%emt 0:01:17]} Rxe4 {[%emt 0:01:47]} 38. Nc4 {[%emt 0:00:08]} Re1+ {[%emt 0:01:34]} 39. Rf1 {[%emt 0:00:13]} Re2 {[%emt 0:02:12]} 40. Rf2 {[%emt 0:01:45]} Re1+ {[%emt 0:00:03]} 41. Rf1 {[%emt 0:00:08]} Re2 {[%emt 0:00:04]} 42. c3 {[%emt 0:00:25]} Ne5 {[%emt 0:01:26]} 43. Nxb6 {[%emt 0:00:36]} Re3 {[%emt 0:00:39]} 44. Rc1 {[%emt 0:01:38]} Kd8 {[%emt 0:03:03]} 45. Kf2 {[%emt 0:01:07]} Ng4+ {[%emt 0:01:16]} 46. Kf1 {[%emt 0:00:00]} Kc7 {[%emt 0:01:42]} 47. Nc4 {[%emt 0:00:21]} Rd3 {[%emt 0:00:05]} 48. a5 {[%emt 0:00:23]} f5 {[%emt 0:00:44]} 49. b4 {[%emt 0:01:28]} f4 {[%emt 0:00:20]} 50. Ke2 {[%emt 0:01:01]} Rg3 {[%emt 0:00:07]} 51. Rh1 {[%emt 0:00:14]} Nf6 {[%emt 0:01:18]} 52. Rh6 {[%emt 0:01:00]} Nd7 {[%emt 0:01:14]} 53. Rh7 {[%emt 0:00:16]} Kd8 {[%emt 0:01:56]} 54. Rh8+ {[%emt 0:00:43]} Ke7 {[%emt 0:00:23]} 55. Rh7+ {[%emt 0:00:25]} Ke6 {[%emt 0:00:08]} 56. Rh6+ {[%emt 0:00:33]} Nf6 {[%emt 0:00:04]} 57. Nd6 {[%emt 0:00:17]} Kxd6 {[%emt 0:03:37]} 58. Rxf6+ {[%emt 0:00:01]} Ke5 {[%emt 0:00:40]} 59. Rf7 {[%emt 0:00:10]} Rxc3 {[%emt 0:00:25]} 60. Rxb7 {[%emt 0:00:07]} Ra3 {[%emt 0:00:38]} 61. Re7+ {[%emt 0:01:12]} Kd4 {[%emt 0:00:10]} 62. Rf7 {[%emt 0:01:08]} Ke5 {[%emt 0:00:06]} 63. Re7+ {[%emt 0:00:10]} Kd4 {[%emt 0:00:05]} 64. Rc7 {[%emt 0:00:49]} Kd5 {[%emt 0:00:20]} 65. Rd7+ {[%emt 0:00:41]} Ke5 {[%emt 0:00:33]} 66. Rd3 {[%emt 0:00:30]} Ra4 {[%emt 0:00:17]} 67. Rc3 {[%emt 0:00:23]} Rxb4 {[%emt 0:00:48]} 68. Ra3 {[%emt 0:00:09]} Rb7 {[%emt 0:00:26]} 69. Ra4 {[%emt 0:00:58]} Rb2+ {[%emt 0:01:13]} 70. Kf1 {[%emt 0:00:27]} Rb7 {[%emt 0:00:21]} 71. a6 {[%emt 0:00:28]} Ra7 {[%emt 0:00:02]} 72. Ke2 {[%emt 0:00:11]} c5 {[%emt 0:00:50]} 73. Kd3 {[%emt 0:00:35]} Kd5 {[%emt 0:00:12]} 74. Ra5 {[%emt 0:00:01]} Kc6 {[%emt 0:00:31]} 75. Kc4 {[%emt 0:00:31]} Kb6 {[%emt 0:00:22]} 76. Ra3 {[%emt 0:00:24]} Ra8 {[%emt 0:00:53]} 77. a7 {[%emt 0:00:31]} Kc6 {[%emt 0:00:07]} 78. Ra6+ {[%emt 0:01:19]} Kb7 {[%emt 0:00:06]} 79. Kb5 {[%emt 0:00:31]} c4 {[%emt 0:00:51]} 80. Rb6+ {[%emt 0:00:22]} Kc7 {[%emt 0:01:51]} 81. Ka6 {[%emt 0:00:10]} Rg8 {[%emt 0:03:20]} 82. Rb7+ {[%emt 0:00:05]} Kd6 {[%emt 0:00:05]} 83. Rb8 {[%emt 0:01:26]} Rxg2 {[%emt 0:00:06]} 84. a8=Q {[%emt 0:00:27]} Ra2+ {[%emt 0:00:07]} 85. Kb5 {[%emt 0:00:01]} Rxa8 {[%emt 0:00:09]} 86. Rxa8 {[%emt 0:00:02]} Kd5 {[%emt 0:01:24]} 87. Rf8 {[%emt 0:00:53]} Ke4 {[%emt 0:00:33]} 88. Kxc4 {[%emt 0:00:07]} Ke3 {[%emt 0:00:12]} 89. Re8+ {[%emt 0:00:16]} Kd2 {[%emt 0:00:25]} 90. Rf8 {[%emt 0:00:04]} Ke3 {[%emt 0:00:03]} 91. Kc3 {[%emt 0:00:09]} f3 {[%emt 0:00:11]} 92. Re8+ {[%emt 0:00:08]} Kf2 {[%emt 0:00:12]} 93. Kd2 {[%emt 0:00:05]} Kg1 {[%emt 0:00:58]} 94. Rf8 {[%emt 0:00:11]} f2 {[%emt 0:00:09]} 95. Ke2 {[%emt 0:00:05]} 1-0

[Event "EYCC O18-ch 2024"]
[Site "Prague"]
[Date "2024.08.26"]
[Round "5.16"]
[White "Nastore, Pavel-Alexandru"]
[Black "Anacak, Hasan Gunes"]
[Result "1-0"]
[ECO "B61"]
[WhiteElo "2233"]
[BlackElo "2071"]
[Annotator "RC"]
[PlyCount "107"]
[EventDate "2024.08.19"]
[EventType "swiss"]
[EventCountry "CZE"]
[SourceTitle "playchess.com"]
[Source "ChessBase"]
[SourceQuality "1"]
[TimeControl "5400+30"]

1. e4 {[%emt 0:00:34]} c5 {[%emt 0:00:12]} 2. Nf3 {[%emt 0:00:05]} d6 {[%emt 0:00:04]} 3. d4 {[%emt 0:00:11]} cxd4 {[%emt 0:00:04]} 4. Nxd4 {[%emt 0:00:04]} Nf6 {[%emt 0:00:04]} 5. Nc3 {[%emt 0:00:04]} Nc6 {[%emt 0:00:04]} 6. Bg5 {[%emt 0:00:18]} Bd7 {[%emt 0:00:05]} 7. Qd2 {[%emt 0:00:08]} Rc8 {[%emt 0:00:04]} 8. O-O-O {[%emt 0:02:10]} Nxd4 {[%emt 0:00:05]} 9. Qxd4 {[%emt 0:00:04]} Qa5 {[%emt 0:00:04]} 10. Bd2 {[%emt 0:07:16]} Ng4 {[%emt 0:00:07]} 11. Be1 {[%emt 0:01:44]} Qc5 {[%emt 0:00:50]} 12. Qxc5 {[%emt 0:01:20]} Rxc5 {[%emt 0:00:05]} 13. h3 {[%emt 0:03:04]} Nf6 {[%emt 0:07:06]} 14. f3 {[%emt 0:05:50]} a6 {[%emt 0:10:06]} 15. Bf2 {[%emt 0:02:13]} Rc8 {[%emt 0:00:54]} 16. g4 {[%emt 0:00:28]} Bc6 {[%emt 0:23:32]} 17. h4 {[%emt 0:03:07]} e6 {[%emt 0:18:25]} 18. Kb1 {[%emt 0:14:20]} Be7 {[%emt 0:04:00]} 19. Bh3 {[%emt 0:04:49]} b5 {[%emt 0:02:25]} 20. Rhe1 {[%emt 0:06:39]} Nd7 {[%emt 0:04:06]} 21. Ne2 {[%emt 0:05:40]} O-O {[%emt 0:09:58]} 22. Nd4 {[%emt 0:09:33]} Bb7 {[%emt 0:01:12]} 23. c3 {[%emt 0:08:20]} Rfd8 {[%emt 0:05:10]} 24. g5 {[%emt 0:09:40]} Nc5 {[%emt 0:00:07]} 25. Nc2 {[%emt 0:00:05]} a5 {[%emt 0:01:47]} 26. Bf1 {[%emt 0:00:25]} Rb8 {[%emt 0:01:44]} 27. Nd4 {[%emt 0:02:59]} b4 {[%emt 0:00:51]} 28. c4 {[%emt 0:01:32]} a4 {[%emt 0:01:29]} 29. Bg3 {[%emt 0:00:09]} g6 {[%emt 0:00:59]} 30. Nb5 {[%emt 0:05:28]} e5 {[%emt 0:00:13]} 31. Rd2 {[%emt 0:00:28]} Bc6 {[%emt 0:01:20]} 32. Nc7 {[%emt 0:00:15]} Rb7 {[%emt 0:03:22]} 33. Nd5 {[%emt 0:00:04]} Bxd5 {[%emt 0:00:21]} 34. cxd5 {[%emt 0:00:09]} f6 {[%emt 0:02:02]} 35. gxf6 {[%emt 0:05:51]} Bxf6 {[%emt 0:00:05]} 36. Bh3 {[%emt 0:00:42]} Bg7 {[%emt 0:01:23]} 37. h5 {[%emt 0:00:09]} Bh6 {[%emt 0:00:38]} 38. Rg2 {[%emt 0:01:27]} Rf8 {[%emt 0:00:32]} 39. hxg6 {[%emt 0:00:56]} hxg6 {[%emt 0:00:19]} 40. Bg4 {[%emt 0:00:24]} b3 {[%emt 0:01:04]} 41. Rh1 {[%emt 0:00:51]} bxa2+ {[%emt 0:00:42]} 42. Kxa2 {[%emt 0:00:01]} Bg7 {[%emt 0:00:26]} 43. Bf2 {[%emt 0:01:47]} Rfb8 {[%emt 0:01:53]} 44. Bxc5 {[%emt 0:00:05]} dxc5 {[%emt 0:00:02]} 45. Be6+ {[%emt 0:00:06]} Kf8 {[%emt 0:00:03]} 46. Rc1 {[%emt 0:00:04]} Rb5 {[%emt 0:00:55]} 47. Rcc2 {[%emt 0:00:33]} a3 {[%emt 0:01:43]} 48. bxa3 {[%emt 0:00:09]} Rb3 {[%emt 0:00:10]} 49. Rxc5 {[%emt 0:01:49]} Rxf3 {[%emt 0:00:14]} 50. d6 {[%emt 0:00:40]} Bf6 {[%emt 0:00:20]} 51. Rgc2 {[%emt 0:00:25]} Kg7 {[%emt 0:01:11]} 52. Rc8 {[%emt 0:00:42]} Rb6 {[%emt 0:00:16]} 53. Rh2 {[%emt 0:00:23]} Bh4 54. Rg8+ 1-0